fUSD/lending_fUSD_20241225
["ID","MTS","AMOUNT","RATE_DAILY","PERIOD"]
[346650031,1735151458352,-500.0,0.00012538,2]
[346650032,1735151458361,-564.7,0.00012538,2]
[346650033,1735151458368,-500.0,0.00012538,2]
[346650034,1735151458377,-500.0,0.00012538,2]
[346650035,1735151458386,-500.0,0.00012538,2]
[346650036,1735151458394,-635.4,0.00012538,2]
[346650037,1735151458402,-500.0,0.00012538,2]
[346650038,1735151458410,-500.0,0.00012538,2]
[346650039,1735151458420,-500.0,0.00012538,2]
[346650040,1735151458429,-500.0,0.00012538,2]
[346650041,1735151458438,-500.0,0.00012538,2]
[346650042,1735151458447,-769.83,0.00012538,2]
[346650043,1735151458456,-169.83430882,0.00012538,2]
[346650044,1735151458464,-500.0,0.00012538,2]
[346650045,1735151458475,-500.0,0.00012538,2]
[346650046,1735151458482,-500.0,0.00012539,2]
[346650047,1735151458491,-278.08,0.00012539,2]
[346650048,1735151458499,-500.0,0.00012539,2]
[346650049,1735151458508,-500.0,0.00012539,2]
[346650050,1735151458519,-500.0,0.00012539,2]
[346650051,1735151458527,-500.0,0.00012539,2]
[346650052,1735151458536,-500.0,0.00012539,2]
[346650053,1735151458544,-500.0,0.00012539,2]
[346650054,1735151458551,-500.0,0.00012539,2]
[346650055,1735151458559,-500.0,0.00012539,2]
[346650056,1735151458569,-500.0,0.00012539,2]
[346650057,1735151458577,-500.0,0.00012539,2]
[346650058,1735151458585,-500.0,0.00012539,2]
[346650059,1735151458594,-500.0,0.00012539,2]
[346650060,1735151458603,-500.0,0.00012539,2]
[346650061,1735151458611,-500.0,0.00012539,2]
[346650062,1735151458619,-500.0,0.00012539,2]
[346650063,1735151458627,-500.0,0.00012539,2]
[346650064,1735151458635,-500.0,0.00012539,2]
[346650065,1735151458644,-500.0,0.00012539,2]
[346650066,1735151458652,-500.0,0.00012539,2]
[346650067,1735151458660,-500.0,0.00012539,2]
[346650068,1735151458670,-500.0,0.00012539,2]
[346650069,1735151458678,-500.0,0.00012539,2]
[346650070,1735151458686,-500.0,0.00012539,2]
[346650071,1735151458695,-500.0,0.00012539,2]
[346650072,1735151458703,-500.0,0.00012539,2]
[346650073,1735151458711,-500.0,0.00012539,2]
[346650074,1735151458719,-500.0,0.00012539,2]
[346650075,1735151458727,-540.98,0.00012539,2]
[346650076,1735151458735,-500.0,0.00012539,2]
[346650077,1735151458744,-500.0,0.00012539,2]
[346650078,1735151458752,-500.0,0.00012539,2]
[346650079,1735151458761,-500.0,0.00012539,2]
[346650080,1735151458770,-500.0,0.00012539,2]
[346650081,1735151458779,-500.0,0.00012539,2]
[346650082,1735151458787,-500.0,0.00012539,2]
[346650083,1735151458796,-500.0,0.00012539,2]
[346650084,1735151458805,-500.0,0.00012539,2]
[346650085,1735151458814,-500.0,0.00012539,2]
[346650086,1735151458823,-500.0,0.00012539,2]
[346650087,1735151458831,-500.0,0.00012539,2]
[346650088,1735151458840,-500.0,0.00012539,2]
[346650089,1735151458849,-500.0,0.00012539,2]
[346650090,1735151458860,-500.0,0.00012539,2]
[346650091,1735151458867,-500.0,0.00012539,2]
[346650092,1735151458875,-500.0,0.00012539,2]
[346650093,1735151458881,-500.0,0.00012539,2]
[346650094,1735151458888,-500.0,0.00012539,2]
[346650095,1735151458894,-336.54,0.00012539,2]
[346650096,1735151458903,-500.0,0.00012539,2]
[346650097,1735151458912,-619.24,0.00012539,2]
[346650098,1735151458923,-500.0,0.00012539,2]
[346650099,1735151458932,-272.46,0.00012539,2]
[346650100,1735151458941,-500.0,0.00012539,2]
[346650101,1735151458951,-500.0,0.00012539,2]
[346650102,1735151458961,-243.53861495,0.0001254,2]
[346650103,1735151458970,-1081.53,0.0001254,2]
[346650104,1735151458980,-500.0,0.0001254,2]
[346650105,1735151458989,-1111.34587471,0.00012605,2]
[346650106,1735151458999,-503.0,0.00012658,2]
[346650107,1735151459008,-1111.34587471,0.00012704,2]
[346650108,1735151459017,-1000.0,0.00012741,2]
[346650109,1735151459027,-212.30342499,0.00012748,2]
[346650110,1735151459036,-1111.34587471,0.00012802,2]
[346650111,1735151459045,-500.0,0.00012811,2]
[346650112,1735151459055,-822.42,0.00012811,2]
[346650113,1735151459064,-500.0,0.00012811,2]
[346650114,1735151459074,-500.0,0.00012811,2]
[346650115,1735151459083,-500.0,0.00012811,2]
[346650116,1735151459092,-3587.6,0.00012811,2]
[346650117,1735151459102,-500.0,0.00012811,2]
[346650118,1735151459111,-908.4,0.00012811,2]
[346650119,1735151459121,-1026.75,0.00012811,2]
[346650120,1735151459130,-1429.07,0.00012811,2]
[346650121,1735151459139,-1399.43,0.00012811,2]
[346650122,1735151459149,-718.09,0.00012811,2]
[346650123,1735151459159,-563.59,0.00012811,2]
[346650124,1735151459170,-848.34,0.00012811,2]
[346650125,1735151459180,-1308.89,0.00012811,2]
[346650126,1735151459189,-1609.86,0.00012811,2]
[346650127,1735151459199,-500.0,0.00012811,2]
[346650128,1735151459209,-519.67,0.00012811,2]
[346650129,1735151459218,-500.0,0.00012811,2]
[346650130,1735151459228,-500.0,0.00012811,2]
[346650131,1735151459237,-5088.45,0.00012811,2]
[346650132,1735151459247,-500.0,0.00012811,2]
[346650133,1735151459255,-500.0,0.00012811,2]
[346650134,1735151459264,-500.0,0.00012811,2]
[346650135,1735151459274,-500.0,0.00012811,2]
[346650136,1735151459284,-892.4,0.00012811,2]
[346650137,1735151459294,-500.0,0.00012811,2]
[346650138,1735151459305,-500.0,0.00012811,2]
[346650139,1735151459315,-500.0,0.00012811,2]
[346650140,1735151459325,-500.0,0.00012811,2]
[346650141,1735151459334,-770.62,0.00012811,2]
[346650142,1735151459344,-370.06,0.00012812,2]
[346650143,1735151459353,-241.02,0.00012812,2]
[346650144,1735151459363,-419.08,0.00012812,2]
[346650145,1735151459373,-182.7,0.00012812,2]
[346650146,1735151459383,-419.02,0.00012812,2]
[346650147,1735151459392,-517.3,0.00012812,2]
[346650148,1735151459402,-490.89,0.00012812,2]
[346650149,1735151459411,-216.02,0.00012812,2]
[346650150,1735151459422,-500.0,0.00012812,2]
[346650151,1735151459432,-316.52,0.00012812,2]
[346650152,1735151459441,-500.0,0.00012812,2]
[346650153,1735151459451,-647.96,0.00012812,2]
[346650154,1735151459461,-328.68,0.00012812,2]
[346650155,1735151459470,-570.06,0.00012812,2]
[346650156,1735151459480,-500.0,0.00012812,2]
[346650157,1735151459490,-216.5,0.00012812,2]
[346650158,1735151459499,-188.8,0.00012812,2]
[346650159,1735151459508,-187.46,0.00012812,2]
[346650160,1735151459522,-500.0,0.00012812,2]
[346650161,1735151459531,-500.0,0.00012812,2]
[346650162,1735151459540,-500.0,0.00012812,2]
[346650163,1735151459550,-500.0,0.00012812,2]
[346650164,1735151459560,-214.78,0.00012812,2]
[346650165,1735151459569,-500.0,0.00012812,2]
[346650166,1735151459579,-500.0,0.00012812,2]
[346650167,1735151459588,-373.7,0.00012812,2]
[346650168,1735151459599,-332.0,0.00012812,2]
[346650169,1735151459609,-500.0,0.00012812,2]
[346650170,1735151459618,-511.14,0.00012812,2]
[346650171,1735151459627,-500.0,0.00012812,2]
[346650172,1735151459637,-500.0,0.00012812,2]
[346650173,1735151459646,-274.78,0.00012812,2]
[346650174,1735151459655,-500.0,0.00012812,2]
[346650175,1735151459664,-500.0,0.00012812,2]
[346650176,1735151459675,-500.0,0.00012812,2]
[346650177,1735151459687,-500.0,0.00012812,2]
[346650178,1735151459697,-500.0,0.00012812,2]
[346650179,1735151459706,-500.0,0.00012812,2]
[346650180,1735151459716,-500.0,0.00012812,2]
[346650181,1735151459725,-500.0,0.00012812,2]
[346650182,1735151459734,-500.0,0.00012812,2]
[346650183,1735151459743,-170.66,0.00012812,2]
[346650184,1735151459752,-500.0,0.00012812,2]
[346650185,1735151459761,-500.0,0.00012812,2]
[346650186,1735151459770,-500.0,0.00012812,2]
[346650187,1735151459779,-500.0,0.00012812,2]
[346650188,1735151459788,-593.96,0.00012812,2]
[346650189,1735151459797,-500.0,0.00012812,2]
[346650190,1735151459806,-500.0,0.00012812,2]
[346650191,1735151459815,-500.0,0.00012812,2]
[346650192,1735151459823,-500.0,0.00012812,2]
[346650193,1735151459833,-500.0,0.00012812,2]
[346650194,1735151459842,-500.0,0.00012812,2]
[346650195,1735151459851,-500.0,0.00012812,2]
[346650196,1735151459861,-434.66,0.00012812,2]
[346650197,1735151459870,-500.0,0.00012812,2]
[346650198,1735151459879,-500.0,0.00012812,2]
[346650199,1735151459887,-219.9,0.00012812,2]
[346650200,1735151459897,-344.82,0.00012812,2]
[346650201,1735151459906,-288.08,0.00012812,2]
[346650202,1735151459914,-500.0,0.00012812,2]
[346650203,1735151459924,-500.0,0.00012812,2]
[346650204,1735151459934,-500.0,0.00012812,2]
[346650205,1735151459943,-500.0,0.00012812,2]
[346650206,1735151459952,-591.54,0.00012812,2]
[346650207,1735151459962,-500.0,0.00012812,2]
[346650208,1735151459971,-637.98,0.00012812,2]
[346650209,1735151459980,-500.0,0.00012812,2]
[346650210,1735151459989,-500.0,0.00012812,2]
[346650211,1735151459999,-500.0,0.00012812,2]
[346650212,1735151460008,-500.0,0.00012812,2]
[346650213,1735151460017,-500.0,0.00012812,2]
[346650214,1735151460026,-261.691354,0.00012812,2]
[346650215,1735151460035,-500.0,0.00012812,2]
[346650216,1735151460045,-500.0,0.00012812,2]
[346650217,1735151460055,-500.0,0.00012812,2]
[346650218,1735151460064,-500.0,0.00012812,2]
[346650219,1735151460074,-320.521166,0.00012812,2]
[346650220,1735151460084,-500.0,0.00012812,2]
[346650221,1735151460093,-500.0,0.00012812,2]
[346650222,1735151460102,-500.0,0.00012812,2]
[346650223,1735151460113,-500.0,0.00012812,2]
[346650224,1735151460124,-500.0,0.00012812,2]
[346650225,1735151460134,-500.0,0.00012812,2]
[346650226,1735151460144,-500.0,0.00012812,2]
[346650227,1735151460153,-500.0,0.00012812,2]
[346650228,1735151460163,-500.0,0.00012812,2]
[346650229,1735151460174,-500.0,0.00012812,2]
[346650230,1735151460184,-500.0,0.00012812,2]
[346650231,1735151460194,-500.0,0.00012812,2]
[346650232,1735151460203,-378.4,0.00012812,2]
[346650233,1735151460214,-500.0,0.00012812,2]
[346650234,1735151460223,-500.0,0.00012812,2]
[346650235,1735151460233,-500.0,0.00012812,2]
[346650236,1735151460243,-500.0,0.00012812,2]
[346650237,1735151460253,-500.0,0.00012812,2]
[346650238,1735151460262,-500.0,0.00012812,2]
[346650239,1735151460272,-442.4,0.00012812,2]
[346650240,1735151460282,-500.0,0.00012812,2]
[346650241,1735151460293,-500.0,0.00012812,2]
[346650242,1735151460303,-500.0,0.00012812,2]
[346650243,1735151460312,-367.94,0.00012812,2]
[346650244,1735151460323,-564.02,0.00012812,2]
[346650245,1735151460332,-500.0,0.00012812,2]
[346650246,1735151460342,-500.0,0.00012812,2]
[346650247,1735151460352,-500.0,0.00012812,2]
[346650248,1735151460362,-500.0,0.00012812,2]
[346650249,1735151460372,-500.0,0.00012812,2]
[346650250,1735151460381,-500.0,0.00012812,2]
[346650251,1735151460391,-500.0,0.00012812,2]
[346650252,1735151460402,-186.76,0.00012812,2]
[346650253,1735151460411,-500.0,0.00012812,2]
[346650254,1735151460422,-500.0,0.00012812,2]
[346650255,1735151460432,-500.0,0.00012812,2]
[346650256,1735151460442,-500.0,0.00012812,2]
[346650257,1735151460451,-500.0,0.00012812,2]
[346650258,1735151460461,-500.0,0.00012812,2]
[346650259,1735151460472,-500.0,0.00012812,2]
[346650260,1735151460481,-500.0,0.00012812,2]
[346650261,1735151460491,-421.96,0.00012812,2]
[346650262,1735151460500,-500.0,0.00012812,2]
[346650263,1735151460510,-187.68,0.00012812,2]
[346650264,1735151460523,-500.0,0.00012812,2]
[346650265,1735151460533,-500.0,0.00012812,2]
[346650266,1735151460543,-500.0,0.00012812,2]
[346650267,1735151460552,-627.42,0.00012812,2]
[346650268,1735151460562,-500.0,0.00012812,2]
[346650269,1735151460572,-500.0,0.00012812,2]
[346650270,1735151460582,-500.0,0.00012812,2]
[346650271,1735151460592,-154.92,0.00012812,2]
[346650272,1735151460602,-500.0,0.00012812,2]
[346650273,1735151460611,-500.0,0.00012812,2]
[346650274,1735151460621,-422.94,0.00012812,2]
[346650275,1735151460631,-500.0,0.00012812,2]
[346650276,1735151460640,-500.0,0.00012812,2]
[346650277,1735151460650,-153.38,0.00012812,2]
[346650278,1735151460659,-500.0,0.00012812,2]
[346650279,1735151460669,-500.0,0.00012812,2]
[346650280,1735151460679,-500.0,0.00012812,2]
[346650281,1735151460688,-500.0,0.00012812,2]
[346650282,1735151460698,-1771.94,0.00012812,2]
[346650283,1735151460708,-500.0,0.00012812,2]
[346650284,1735151460717,-500.0,0.00012812,2]
[346650285,1735151460727,-2285.93,0.00012812,2]
[346650286,1735151460737,-500.0,0.00012812,2]
[346650287,1735151460746,-500.0,0.00012812,2]
[346650288,1735151460755,-500.0,0.00012812,2]
[346650289,1735151460764,-500.0,0.00012812,2]
[346650290,1735151460774,-611.72,0.00012812,2]
[346650291,1735151460784,-500.0,0.00012812,2]
[346650292,1735151460794,-224.12,0.00012812,2]
[346650293,1735151460803,-500.0,0.00012812,2]
[346650294,1735151460812,-794.37,0.00012812,2]
[346650295,1735151460822,-500.0,0.00012812,2]
[346650296,1735151460832,-500.0,0.00012812,2]
[346650297,1735151460842,-500.0,0.00012812,2]
[346650298,1735151460851,-695.85,0.00012812,2]
[346650299,1735151460861,-4858.63,0.00012812,2]
[346650300,1735151460871,-608.7,0.00012812,2]
[346650301,1735151460880,-1666.78,0.00012812,2]
[346650302,1735151460889,-500.0,0.00012812,2]
[346650303,1735151460899,-500.0,0.00012812,2]
[346650304,1735151460908,-2673.38,0.00012812,2]
[346650305,1735151460918,-500.0,0.00012812,2]
[346650306,1735151460927,-500.0,0.00012812,2]
[346650307,1735151460937,-500.0,0.00012812,2]
[346650308,1735151460946,-500.0,0.00012812,2]
[346650309,1735151460955,-579.38,0.00012812,2]
[346650310,1735151460965,-500.0,0.00012812,2]
[346650311,1735151460974,-500.0,0.00012812,2]
[346650312,1735151460983,-1401.24,0.00012812,2]
[346650313,1735151460993,-634.76,0.00012812,2]
[346650314,1735151461002,-500.0,0.00012812,2]
[346650315,1735151461012,-500.0,0.00012812,2]
[346650316,1735151461021,-500.0,0.00012812,2]
[346650317,1735151461031,-500.0,0.00012812,2]
[346650318,1735151461040,-500.0,0.00012812,2]
[346650319,1735151461050,-500.0,0.00012812,2]
[346650320,1735151461059,-500.0,0.00012812,2]
[346650321,1735151461069,-500.0,0.00012812,2]
[346650322,1735151461079,-500.0,0.00012812,2]
[346650323,1735151461089,-602.64,0.00012812,2]
[346650324,1735151461099,-500.0,0.00012812,2]
[346650325,1735151461109,-154.66,0.00012812,2]
[346650326,1735151461119,-500.0,0.00012812,2]
[346650327,1735151461130,-500.0,0.00012812,2]
[346650328,1735151461140,-500.0,0.00012812,2]
[346650329,1735151461150,-500.0,0.00012812,2]
[346650330,1735151461160,-281.7,0.00012812,2]
[346650331,1735151461171,-500.0,0.00012812,2]
[346650332,1735151461181,-635.95,0.00012812,2]
[346650333,1735151461191,-982.78,0.00012812,2]
[346650334,1735151461201,-500.0,0.00012812,2]
[346650335,1735151461212,-1232.18,0.00012812,2]
[346650336,1735151461222,-633.06,0.00012812,2]
[346650337,1735151461231,-500.0,0.00012812,2]
[346650338,1735151461241,-235.66,0.00012812,2]
[346650339,1735151461250,-500.0,0.00012812,2]
[346650340,1735151461260,-500.0,0.00012812,2]
[346650341,1735151461270,-544.08,0.00012812,2]
[346650342,1735151461279,-510.55,0.00012812,2]
[346650343,1735151461289,-500.0,0.00012812,2]
[346650344,1735151461299,-500.0,0.00012812,2]
[346650345,1735151461308,-1010.53,0.00012812,2]
[346650346,1735151461319,-1000.0,0.00012812,2]
[346650347,1735151461329,-500.0,0.00012812,2]
[346650348,1735151461339,-500.0,0.00012812,2]
[346650349,1735151461349,-1695.51,0.00012812,2]
[346650350,1735151461359,-500.0,0.00012812,2]
[346650351,1735151461369,-485.8,0.00012812,2]
[346650352,1735151461378,-500.0,0.00012812,2]
[346650353,1735151461388,-500.0,0.00012812,2]
[346650354,1735151461398,-500.0,0.00012812,2]
[346650355,1735151461408,-500.0,0.00012812,2]
[346650356,1735151461419,-500.0,0.00012812,2]
[346650357,1735151461428,-586.58,0.00012812,2]
[346650358,1735151461438,-594.65,0.00012812,2]
[346650359,1735151461448,-500.0,0.00012812,2]
[346650360,1735151461457,-603.74,0.00012812,2]
[346650361,1735151461467,-500.0,0.00012812,2]
[346650362,1735151461476,-1307.1,0.00012812,2]
[346650363,1735151461485,-500.0,0.00012812,2]
[346650364,1735151461494,-500.0,0.00012812,2]
[346650365,1735151461504,-2456.7,0.00012812,2]
[346650366,1735151461513,-500.0,0.00012812,2]
[346650367,1735151461526,-500.0,0.00012812,2]
[346650368,1735151461535,-344.94,0.00012812,2]
[346650369,1735151461545,-2177.2,0.00012812,2]
[346650370,1735151461555,-500.0,0.00012812,2]
[346650371,1735151461565,-500.0,0.00012812,2]
[346650372,1735151461574,-500.0,0.00012812,2]
[346650373,1735151461584,-500.0,0.00012812,2]
[346650374,1735151461593,-1836.23,0.00012812,2]
[346650375,1735151461604,-669.57,0.00012812,2]
[346650376,1735151461613,-511.95,0.00012812,2]
[346650377,1735151461622,-500.0,0.00012812,2]
[346650378,1735151461632,-400.86,0.00012812,2]
[346650379,1735151461641,-500.0,0.00012812,2]
[346650380,1735151461651,-500.0,0.00012812,2]
[346650381,1735151461660,-500.0,0.00012812,2]
[346650382,1735151461670,-219.56,0.00012812,2]
[346650383,1735151461680,-500.0,0.00012812,2]
[346650384,1735151461690,-513.9,0.00012812,2]
[346650385,1735151461701,-500.0,0.00012812,2]
[346650386,1735151461710,-500.0,0.00012812,2]
[346650387,1735151461719,-500.0,0.00012812,2]
[346650388,1735151461729,-500.0,0.00012812,2]
[346650389,1735151461738,-500.0,0.00012812,2]
[346650390,1735151461748,-3434.12,0.00012812,2]
[346650391,1735151461757,-500.0,0.00012812,2]
[346650392,1735151461767,-162.32,0.00012812,2]
[346650393,1735151461776,-500.0,0.00012812,2]
[346650394,1735151461786,-828.72,0.00012812,2]
[346650395,1735151461796,-500.0,0.00012812,2]
[346650396,1735151461806,-500.0,0.00012812,2]
[346650397,1735151461816,-500.0,0.00012812,2]
[346650398,1735151461825,-500.0,0.00012812,2]
[346650399,1735151461835,-500.0,0.00012812,2]
[346650400,1735151461844,-500.0,0.00012812,2]
[346650401,1735151461854,-500.0,0.00012812,2]
[346650402,1735151461864,-572.61,0.00012812,2]
[346650403,1735151461873,-500.0,0.00012812,2]
[346650404,1735151461883,-766.89,0.00012812,2]
[346650405,1735151461893,-500.0,0.00012812,2]
[346650406,1735151461902,-564.44,0.00012812,2]
[346650407,1735151461911,-500.0,0.00012812,2]
[346650408,1735151461920,-500.0,0.00012812,2]
[346650409,1735151461930,-1177.29,0.00012812,2]
[346650410,1735151461940,-500.0,0.00012812,2]
[346650411,1735151461949,-541.3,0.00012812,2]
[346650412,1735151461959,-500.0,0.00012812,2]
[346650413,1735151461968,-253.18,0.00012812,2]
[346650414,1735151461977,-1675.41,0.00012812,2]
[346650415,1735151461987,-480.2,0.00012812,2]
[346650416,1735151461996,-393.14,0.00012812,2]
[346650417,1735151462006,-342.78,0.00012812,2]
[346650418,1735151462016,-500.0,0.00012812,2]
[346650419,1735151462026,-7186.89,0.00012812,2]
[346650420,1735151462036,-500.0,0.00012812,2]
[346650421,1735151462046,-500.0,0.00012812,2]
[346650422,1735151462056,-500.0,0.00012812,2]
[346650423,1735151462066,-462.08,0.00012812,2]
[346650424,1735151462076,-614.16,0.00012812,2]
[346650425,1735151462086,-635.4,0.00012812,2]
[346650426,1735151462096,-500.0,0.00012812,2]
[346650427,1735151462106,-769.83,0.00012812,2]
[346650428,1735151462116,-500.0,0.00012812,2]
[346650429,1735151462126,-500.0,0.00012813,2]
[346650430,1735151462136,-500.0,0.00012813,2]
[346650431,1735151462145,-500.0,0.00012813,2]
[346650432,1735151462156,-500.0,0.00012813,2]
[346650433,1735151462165,-575.74,0.00012813,2]
[346650434,1735151462176,-500.0,0.00012813,2]
[346650435,1735151462186,-500.0,0.00012813,2]
[346650436,1735151462196,-500.0,0.00012813,2]
[346650437,1735151462206,-500.0,0.00012813,2]
[346650438,1735151462216,-500.0,0.00012813,2]
[346650439,1735151462226,-500.0,0.00012813,2]
[346650440,1735151462236,-551.65,0.00012813,2]
[346650441,1735151462246,-190.52,0.00012813,2]
[346650442,1735151462256,-500.0,0.00012813,2]
[346650443,1735151462266,-500.0,0.00012813,2]
[346650444,1735151462276,-500.0,0.00012813,2]
[346650445,1735151462285,-249.38,0.00012813,2]
[346650446,1735151462295,-500.0,0.00012813,2]
[346650447,1735151462305,-500.0,0.00012813,2]
[346650448,1735151462316,-500.0,0.00012813,2]
[346650449,1735151462483,-500.0,0.00012813,2]
[346650450,1735151462517,-553.56,0.00012813,2]
[346650451,1735151462529,-500.0,0.00012813,2]
[346650452,1735151462539,-500.0,0.00012813,2]
[346650453,1735151462548,-500.0,0.00012813,2]
[346650454,1735151462558,-500.0,0.00012813,2]
[346650455,1735151462568,-500.0,0.00012813,2]
[346650456,1735151462578,-500.0,0.00012813,2]
[346650457,1735151462587,-500.0,0.00012813,2]
[346650458,1735151462597,-500.0,0.00012813,2]
[346650459,1735151462606,-500.0,0.00012813,2]
[346650460,1735151462616,-500.0,0.00012813,2]
[346650461,1735151462626,-500.0,0.00012813,2]
[346650462,1735151462636,-500.0,0.00012813,2]
[346650463,1735151462645,-500.0,0.00012813,2]
[346650464,1735151462655,-500.0,0.00012813,2]
[346650465,1735151462664,-500.0,0.00012813,2]
[346650466,1735151462675,-500.0,0.00012813,2]
[346650467,1735151462684,-500.0,0.00012813,2]
[346650468,1735151462694,-500.0,0.00012813,2]
[346650469,1735151462703,-500.0,0.00012813,2]
[346650470,1735151462713,-500.0,0.00012813,2]
[346650471,1735151462722,-500.0,0.00012813,2]
[346650472,1735151462731,-500.0,0.00012813,2]
[346650473,1735151462740,-500.0,0.00012813,2]
[346650474,1735151462750,-500.0,0.00012813,2]
[346650475,1735151462759,-500.0,0.00012813,2]
[346650476,1735151462768,-500.0,0.00012813,2]
[346650477,1735151462777,-500.0,0.00012813,2]
[346650478,1735151462786,-500.0,0.00012813,2]
[346650479,1735151462795,-500.0,0.00012813,2]
[346650480,1735151462805,-151.0,0.00012813,2]
[346650481,1735151462814,-1081.53,0.00012814,2]
[346650482,1735151462823,-637.78611213,0.00012814,2]
[346650483,1735151462832,-1136.57407,0.0001282,2]
[346650484,1735151462843,-428.97090145,0.00012837,2]
[346650485,1735151462852,-3145.4369,0.0001286,2]
[346650486,1735151462861,-173.59306876,0.00012873,2]
[346650487,1735151462871,-1541.4,0.00012882,2]
[346650488,1735151462880,-436.91,0.00012882,2]
[346650489,1735151462889,-1111.34587471,0.000129,2]
[346650490,1735151462898,-153.88998305,0.000129,2]
[346650491,1735151462908,-153.88998294,0.000129,2]
[346650492,1735151462917,-153.88998294,0.000129,2]
[346650493,1735151462927,-153.88998294,0.000129,2]
[346650494,1735151462936,-153.88998294,0.000129,2]
[346650495,1735151462946,-153.88998294,0.000129,2]
[346650496,1735151462956,-153.88998294,0.000129,2]
[346650497,1735151462965,-153.88998294,0.000129,2]
[346650498,1735151462975,-153.88998294,0.000129,2]
[346650499,1735151462985,-153.88998294,0.000129,2]
[346650500,1735151462995,-153.88998294,0.000129,2]
[346650501,1735151463005,-153.88998294,0.000129,2]
[346650502,1735151463015,-153.88998294,0.000129,2]
[346650503,1735151463024,-153.88998294,0.000129,2]
[346650504,1735151463035,-153.88998294,0.000129,2]
[346650505,1735151463045,-153.88998294,0.000129,2]
[346650506,1735151463056,-153.88998294,0.000129,2]
[346650507,1735151463067,-153.88998294,0.000129,2]
[346650508,1735151463077,-1000.0,0.000129,2]
[346650509,1735151463087,-153.88998294,0.000129,2]
[346650510,1735151463098,-326.18916404,0.000129,2]
[346650511,1735151463109,-166.23926023,0.000129,2]
[346650512,1735151463119,-278.24,0.00012901,2]
[346650513,1735151463129,-21642.75520555,0.0001295,2]
[346650514,1735151463140,-229.98941723,0.0001295,2]
[346650515,1735151463150,-827.0,0.0001296,2]
[346650516,1735151463160,-500000.0,0.0001296,2]
[346650517,1735151463172,-500.0,0.00012973,2]
[346650518,1735151463183,-500.0,0.00012973,2]
[346650519,1735151463194,-500.0,0.00012973,2]
[346650520,1735151463204,-500.0,0.00012973,2]
[346650521,1735151463215,-151.16141491,0.00012973,2]
[346650522,1735151463226,-500.0,0.00012973,2]
[346650523,1735151463237,-160.44272468,0.00012973,2]
[346650524,1735151463247,-500.0,0.00012973,2]
[346650525,1735151463258,-352.89608645,0.00012973,2]
[346650526,1735151463268,-22973.07693396,0.00012985,2]
[346650527,1735151463279,-229.98941723,0.0001299,2]
[346650528,1735151463289,-150.0,0.00012999,2]
[346650529,1735151463299,-500.0,0.00012999,2]
[346650530,1735151463310,-488716.79495485,0.00013,2]